[Event "Late-Titled-Tuesday-Blitz-October-03-2023"]
[Site "Chess.com"]
[Date "2023.10.03"]
[Round "11"]
[White "hellokostya"]
[Black "acertijo08"]
[Result "1-0"]
[WhiteElo "2541"]
[BlackElo "2357"]
[TimeControl "180+1"]
[EndTime "16:01:09 PDT"]
[Termination "hellokostya won by resignation"]

1. d4 {[%clk 0:03:00.9]} 1... Nf6 {[%clk 0:02:59.5]} 2. Bg5 {[%clk 0:02:58.8]}
2... e6 {[%clk 0:02:59.7]} 3. Nd2 {[%clk 0:02:58.6]} 3... d5 {[%clk 0:02:59.6]}
4. e3 {[%clk 0:02:59]} 4... Be7 {[%clk 0:02:59.3]} 5. Bd3 {[%clk 0:02:59.2]}
5... c5 {[%clk 0:02:59.4]} 6. c3 {[%clk 0:02:59]} 6... Nc6 {[%clk 0:02:59.7]} 7.
f4 {[%clk 0:02:57.2]} 7... Nd7 {[%clk 0:02:47.5]} 8. Bxe7 {[%clk 0:02:55.7]}
8... Qxe7 {[%clk 0:02:48.4]} 9. Ngf3 {[%clk 0:02:56]} 9... f5 {[%clk 0:02:44.2]}
10. O-O {[%clk 0:02:55.5]} 10... O-O {[%clk 0:02:43.5]} 11. Ne5 {[%clk
0:02:53.9]} 11... Nf6 {[%clk 0:02:42.7]} 12. Ndf3 {[%clk 0:02:47.9]} 12... Bd7
{[%clk 0:02:38.4]} 13. Nxc6 {[%clk 0:02:45.5]} 13... bxc6 {[%clk 0:02:36.5]} 14.
Ne5 {[%clk 0:02:46.4]} 14... Rab8 {[%clk 0:02:34.5]} 15. b3 {[%clk 0:02:45.4]}
15... cxd4 {[%clk 0:02:33.3]} 16. exd4 {[%clk 0:02:45.2]} 16... c5 {[%clk
0:02:33.6]} 17. Qd2 {[%clk 0:02:30.7]} 17... cxd4 {[%clk 0:02:25.2]} 18. cxd4
{[%clk 0:02:31.6]} 18... Bb5 {[%clk 0:02:21]} 19. Bxb5 {[%clk 0:02:25.9]} 19...
Rxb5 {[%clk 0:02:19.9]} 20. Qd3 {[%clk 0:02:26.7]} 20... Qb7 {[%clk 0:02:12.7]}
21. Rac1 {[%clk 0:02:23.1]} 21... Rb6 {[%clk 0:02:02.8]} 22. Rc2 {[%clk
0:02:15.8]} 22... Qa6 {[%clk 0:02:01.7]} 23. Rfc1 {[%clk 0:02:08.3]} 23... Qxd3
{[%clk 0:01:54.2]} 24. Nxd3 {[%clk 0:02:09.2]} 24... Ne4 {[%clk 0:01:51]} 25.
Rc7 {[%clk 0:02:08.2]} 25... Rf7 {[%clk 0:01:34.7]} 26. Ne5 {[%clk 0:02:02.9]}
26... Rxc7 {[%clk 0:01:32.6]} 27. Rxc7 {[%clk 0:02:03.8]} 27... h6 {[%clk
0:01:23.6]} 28. Rxa7 {[%clk 0:02:01.9]} 28... Rb4 {[%clk 0:01:23.4]} 29. Nf3
{[%clk 0:01:53.8]} 29... Rb8 {[%clk 0:01:13.9]} 30. Ra6 {[%clk 0:01:45.5]} 30...
Rc8 {[%clk 0:01:13.2]} 31. h3 {[%clk 0:01:41.8]} 31... Rc1+ {[%clk 0:01:08.3]}
32. Kh2 {[%clk 0:01:41.9]} 32... Kf7 {[%clk 0:01:02.4]} 33. Ne5+ {[%clk
0:01:40.3]} 33... Kg8 {[%clk 0:00:53.3]} 34. Rxe6 {[%clk 0:01:38.3]} 34... Rd1
{[%clk 0:00:52]} 35. Re8+ {[%clk 0:01:36.4]} 35... Kh7 {[%clk 0:00:51.7]} 36.
Nf3 {[%clk 0:01:36.9]} 36... Ra1 {[%clk 0:00:48.3]} 37. a4 {[%clk 0:01:36.2]}
37... Rb1 {[%clk 0:00:47.5]} 38. Rb8 {[%clk 0:01:36.5]} 38... Nc3 {[%clk
0:00:44.4]} 39. a5 {[%clk 0:01:34.7]} 39... Ne2 {[%clk 0:00:38.2]} 40. b4 {[%clk
0:01:32.2]} 40... Nxf4 {[%clk 0:00:36.5]} 41. a6 {[%clk 0:01:30.9]} 41... Rb2
{[%clk 0:00:36.9]} 42. a7 {[%clk 0:01:29.3]} 42... Nxg2 {[%clk 0:00:33]} 43.
a8=Q {[%clk 0:01:07.2]} 43... Ne1+ {[%clk 0:00:32.8]} 44. Kg3 {[%clk 0:00:46.6]}
44... Rg2+ {[%clk 0:00:31.2]} 45. Kf4 {[%clk 0:00:46.2]} 45... Nd3+ {[%clk
0:00:31.4]} 46. Ke3 {[%clk 0:00:46.2]} 1-0

[Event "Late-Titled-Tuesday-Blitz-October-03-2023"]
[Site "Chess.com"]
[Date "2023.10.03"]
[Round "11"]
[White "Vaathi_Coming"]
[Black "reevecanada"]
[Result "0-1"]
[WhiteElo "2879"]
[BlackElo "2612"]
[TimeControl "180+1"]
[EndTime "16:01:13 PDT"]
[Termination "reevecanada won on time"]

1. b3 {[%clk 0:03:00.9]} 1... e5 {[%clk 0:02:56.2]} 2. Bb2 {[%clk 0:03:01.1]}
2... Nc6 {[%clk 0:02:56.3]} 3. e3 {[%clk 0:03:01.3]} 3... d5 {[%clk 0:02:55]} 4.
Bb5 {[%clk 0:03:00.6]} 4... Bd6 {[%clk 0:02:54.4]} 5. f4 {[%clk 0:03:00.4]} 5...
Qe7 {[%clk 0:02:41.6]} 6. Nc3 {[%clk 0:02:23.4]} 6... Nf6 {[%clk 0:02:24]} 7.
fxe5 {[%clk 0:02:22.9]} 7... Bxe5 {[%clk 0:02:23.8]} 8. Nf3 {[%clk 0:02:23.5]}
8... Bd6 {[%clk 0:02:23.9]} 9. O-O {[%clk 0:02:13.3]} 9... O-O {[%clk
0:02:23.4]} 10. Bxc6 {[%clk 0:02:02.1]} 10... bxc6 {[%clk 0:02:22.7]} 11. Ne2
{[%clk 0:02:02.9]} 11... Ne4 {[%clk 0:02:19.4]} 12. d3 {[%clk 0:01:58.3]} 12...
Ng5 {[%clk 0:02:18.9]} 13. Qd2 {[%clk 0:01:55.9]} 13... Nxf3+ {[%clk 0:02:18.4]}
14. Rxf3 {[%clk 0:01:56.8]} 14... Bg4 {[%clk 0:02:17.6]} 15. Rf2 {[%clk
0:01:54.4]} 15... Rae8 {[%clk 0:02:16.8]} 16. Nd4 {[%clk 0:01:45.5]} 16... c5
{[%clk 0:02:04.4]} 17. Nf5 {[%clk 0:01:44]} 17... Bxf5 {[%clk 0:02:03]} 18. Rxf5
{[%clk 0:01:44.9]} 18... Qxe3+ {[%clk 0:02:01.7]} 19. Qxe3 {[%clk 0:01:44.1]}
19... Rxe3 {[%clk 0:02:02.1]} 20. Rxd5 {[%clk 0:01:41.4]} 20... Re2 {[%clk
0:02:01.8]} 21. Rc1 {[%clk 0:01:38.6]} 21... Bf4 {[%clk 0:02:01.3]} 22. Rf1
{[%clk 0:01:37.4]} 22... Be3+ {[%clk 0:02:00.4]} 23. Kh1 {[%clk 0:01:38]} 23...
Rxc2 {[%clk 0:02:00]} 24. Be5 {[%clk 0:01:37.7]} 24... Rxa2 {[%clk 0:01:48.5]}
25. Bxc7 {[%clk 0:01:35.3]} 25... Rb2 {[%clk 0:01:47.4]} 26. Bd6 {[%clk
0:00:46.3]} 26... Rd8 {[%clk 0:01:22.4]} 27. Re1 {[%clk 0:00:39.5]} 27... h6
{[%clk 0:01:22]} 28. g3 {[%clk 0:00:21.6]} 28... Bd4 {[%clk 0:01:20.9]} 29. b4
{[%clk 0:00:21.7]} 29... Bc3 {[%clk 0:01:06.5]} 30. Rc1 {[%clk 0:00:13.4]} 30...
Bxb4 {[%clk 0:01:05.8]} 31. Rd1 {[%clk 0:00:02.9]} 31... a5 {[%clk 0:01:03.1]}
32. Be5 {[%clk 0:00:02.5]} 32... Rxd5 {[%clk 0:01:01.6]} 33. Bxb2 {[%clk
0:00:02.6]} 33... c4 {[%clk 0:01:01.8]} 34. d4 {[%clk 0:00:01.2]} 34... c3
{[%clk 0:01:01.7]} 35. Bc1 {[%clk 0:00:02]} 35... a4 {[%clk 0:01:02.2]} 36. Kg2
{[%clk 0:00:01.6]} 36... a3 {[%clk 0:01:02.2]} 37. Kf3 {[%clk 0:00:01.5]} 37...
a2 {[%clk 0:01:02.4]} 38. Be3 {[%clk 0:00:01.7]} 38... c2 {[%clk 0:00:59.7]} 39.
Ra1 {[%clk 0:00:01.8]} 39... Ra5 {[%clk 0:01:00.1]} 40. Bd2 {[%clk 0:00:02.1]}
40... Bxd2 {[%clk 0:01:00.1]} 0-1

[Event "Late-Titled-Tuesday-Blitz-October-03-2023"]
[Site "Chess.com"]
[Date "2023.10.03"]
[Round "11"]
[White "Let_it_be_1"]
[Black "Zq1"]
[Result "1/2-1/2"]
[WhiteElo "2612"]
[BlackElo "2521"]
[TimeControl "180+1"]
[EndTime "16:01:13 PDT"]
[Termination "Game drawn - insufficient material"]

1. e4 {[%clk 0:03:00.9]} 1... c5 {[%clk 0:02:59.6]} 2. Nf3 {[%clk 0:03:00.7]}
2... d6 {[%clk 0:02:59.6]} 3. d4 {[%clk 0:03:00.8]} 3... cxd4 {[%clk 0:02:59.8]}
4. Nxd4 {[%clk 0:03:01.5]} 4... Nf6 {[%clk 0:02:59.8]} 5. Nc3 {[%clk 0:03:01.5]}
5... Nc6 {[%clk 0:02:59.8]} 6. Be2 {[%clk 0:03:01.1]} 6... g6 {[%clk 0:02:58.4]}
7. Be3 {[%clk 0:03:00.8]} 7... Bg7 {[%clk 0:02:58.4]} 8. O-O {[%clk 0:03:00.5]}
8... O-O {[%clk 0:02:58.4]} 9. Qd2 {[%clk 0:02:59.9]} 9... Ng4 {[%clk
0:02:47.2]} 10. Bxg4 {[%clk 0:02:58.3]} 10... Bxg4 {[%clk 0:02:46.2]} 11. f3
{[%clk 0:02:58.4]} 11... Bd7 {[%clk 0:02:42.9]} 12. Rfd1 {[%clk 0:02:56.5]}
12... Rc8 {[%clk 0:02:38.1]} 13. Nxc6 {[%clk 0:02:53.1]} 13... Rxc6 {[%clk
0:02:34.7]} 14. Bd4 {[%clk 0:02:48.8]} 14... a6 {[%clk 0:02:16.4]} 15. Bxg7
{[%clk 0:02:45.6]} 15... Kxg7 {[%clk 0:02:16.6]} 16. Nd5 {[%clk 0:02:44.3]}
16... Be6 {[%clk 0:02:14.1]} 17. b3 {[%clk 0:02:31.1]} 17... Bxd5 {[%clk
0:02:06.1]} 18. exd5 {[%clk 0:02:29.8]} 18... Rc5 {[%clk 0:02:06.2]} 19. c4
{[%clk 0:02:28.5]} 19... b5 {[%clk 0:02:05.3]} 20. Rac1 {[%clk 0:02:24.1]} 20...
Qc7 {[%clk 0:01:59.2]} 21. cxb5 {[%clk 0:02:17.1]} 21... axb5 {[%clk 0:01:58.6]}
22. Qd4+ {[%clk 0:02:16.7]} 22... f6 {[%clk 0:01:51.4]} 23. Rxc5 {[%clk
0:02:15.8]} 23... Qxc5 {[%clk 0:01:47.8]} 24. Qxc5 {[%clk 0:02:09.6]} 24... dxc5
{[%clk 0:01:47.9]} 25. Rc1 {[%clk 0:02:08.7]} 25... Rc8 {[%clk 0:01:47.6]} 26.
Kf2 {[%clk 0:02:03.7]} 26... Kf7 {[%clk 0:01:47.4]} 27. Ke3 {[%clk 0:02:04]}
27... e5 {[%clk 0:01:42.8]} 28. dxe6+ {[%clk 0:01:58.7]} 28... Kxe6 {[%clk
0:01:42.6]} 29. a4 {[%clk 0:01:58.6]} 29... bxa4 {[%clk 0:01:35.6]} 30. bxa4
{[%clk 0:01:58.3]} 30... Kd5 {[%clk 0:01:35.8]} 31. Kd3 {[%clk 0:01:55.2]} 31...
Ra8 {[%clk 0:01:32.4]} 32. Ra1 {[%clk 0:01:54.2]} 32... Ra5 {[%clk 0:01:25.8]}
33. Kc3 {[%clk 0:01:53.3]} 33... f5 {[%clk 0:01:25.1]} 34. Kb3 {[%clk
0:01:48.5]} 34... Kd4 {[%clk 0:01:17.2]} 35. Rd1+ {[%clk 0:01:34]} 35... Ke3
{[%clk 0:01:17]} 36. Ra1 {[%clk 0:01:29.7]} 36... h5 {[%clk 0:01:10.3]} 37. Kc4
{[%clk 0:01:26.7]} 37... h4 {[%clk 0:01:09.5]} 38. h3 {[%clk 0:01:26.5]} 38...
Kf2 {[%clk 0:00:58]} 39. Ra2+ {[%clk 0:01:26]} 39... Kg3 {[%clk 0:00:56.6]} 40.
Kd5 {[%clk 0:01:26]} 40... g5 {[%clk 0:00:53.2]} 41. Kc6 {[%clk 0:01:24.7]}
41... c4 {[%clk 0:00:51]} 42. Kb6 {[%clk 0:01:24.8]} 42... Rxa4 {[%clk
0:00:46.2]} 43. Rxa4 {[%clk 0:01:21.1]} 43... Kxg2 {[%clk 0:00:46.7]} 44. Ra5
{[%clk 0:01:13.7]} 44... Kxh3 {[%clk 0:00:34.5]} 45. Rxf5 {[%clk 0:01:12.5]}
45... g4 {[%clk 0:00:33.4]} 46. fxg4 {[%clk 0:01:02.1]} 46... Kxg4 {[%clk
0:00:32.4]} 47. Rc5 {[%clk 0:01:02.1]} 47... h3 {[%clk 0:00:32]} 48. Rxc4+
{[%clk 0:01:02.1]} 48... Kg3 {[%clk 0:00:32.4]} 49. Rc3+ {[%clk 0:01:02.1]}
49... Kg2 {[%clk 0:00:32.7]} 50. Rc2+ {[%clk 0:01:02]} 50... Kg1 {[%clk
0:00:32.9]} 51. Rc1+ {[%clk 0:01:02]} 51... Kg2 {[%clk 0:00:32.8]} 52. Rc2+
{[%clk 0:01:02.3]} 52... Kg1 {[%clk 0:00:33.2]} 53. Kc5 {[%clk 0:01:01.2]} 53...
h2 {[%clk 0:00:32.9]} 54. Kd4 {[%clk 0:01:00.2]} 54... h1=Q {[%clk 0:00:32.8]}
55. Rc1+ {[%clk 0:00:59.6]} 55... Kh2 {[%clk 0:00:32.9]} 56. Rxh1+ {[%clk
0:01:00.2]} 56... Kxh1 {[%clk 0:00:32.9]} 1/2-1/2

[Event "Late-Titled-Tuesday-Blitz-October-03-2023"]
[Site "Chess.com"]
[Date "2023.10.03"]
[Round "11"]
[White "Mariia89"]
[Black "The_Princess_Moon"]
[Result "0-1"]
[WhiteElo "2060"]
[BlackElo "2288"]
[TimeControl "180+1"]
[EndTime "16:01:20 PDT"]
[Termination "The_Princess_Moon won on time"]

1. d4 {[%clk 0:02:59.8]} 1... c5 {[%clk 0:03:00.9]} 2. d5 {[%clk 0:02:59.6]}
2... d6 {[%clk 0:03:00.5]} 3. Nc3 {[%clk 0:03:00.5]} 3... e5 {[%clk 0:03:01.4]}
4. dxe6 {[%clk 0:02:59.6]} 4... Bxe6 {[%clk 0:03:00.2]} 5. e4 {[%clk 0:03:00.2]}
5... Nf6 {[%clk 0:03:00.4]} 6. Nf3 {[%clk 0:02:58]} 6... Nc6 {[%clk 0:03:01]} 7.
Bg5 {[%clk 0:02:57.8]} 7... Be7 {[%clk 0:03:00.8]} 8. Be2 {[%clk 0:02:55.9]}
8... O-O {[%clk 0:02:58.4]} 9. O-O {[%clk 0:02:56.2]} 9... h6 {[%clk 0:02:58.6]}
10. Bh4 {[%clk 0:02:52.2]} 10... a6 {[%clk 0:02:47.8]} 11. a4 {[%clk 0:02:51.6]}
11... Nb4 {[%clk 0:02:42]} 12. Re1 {[%clk 0:02:17.2]} 12... Nd7 {[%clk
0:02:38.7]} 13. Bg3 {[%clk 0:02:16.1]} 13... Ne5 {[%clk 0:02:20.4]} 14. Nxe5
{[%clk 0:02:11.9]} 14... dxe5 {[%clk 0:02:21.3]} 15. Bxe5 {[%clk 0:02:11.8]}
15... Qxd1 {[%clk 0:02:18.6]} 16. Bxd1 {[%clk 0:02:11.1]} 16... Rad8 {[%clk
0:02:16.8]} 17. h3 {[%clk 0:02:05.9]} 17... Rd2 {[%clk 0:01:46.8]} 18. Rc1
{[%clk 0:01:29.8]} 18... Bg5 {[%clk 0:01:34.3]} 19. f4 {[%clk 0:01:09.3]} 19...
Bh4 {[%clk 0:01:33.9]} 20. Re2 {[%clk 0:01:04.4]} 20... Rfd8 {[%clk 0:01:29.1]}
21. Bc7 {[%clk 0:00:45.6]} 21... Rxe2 {[%clk 0:01:09.9]} 22. Nxe2 {[%clk
0:00:36.7]} 22... Rd2 {[%clk 0:01:05.1]} 23. Ba5 {[%clk 0:00:29.2]} 23... Bc4
{[%clk 0:00:58.6]} 24. Bxb4 {[%clk 0:00:23.6]} 24... cxb4 {[%clk 0:00:56.9]} 25.
Kf1 {[%clk 0:00:08.9]} 25... Kf8 {[%clk 0:00:47]} 26. b3 {[%clk 0:00:07.9]}
26... Be6 {[%clk 0:00:36.9]} 27. Ng1 {[%clk 0:00:03.7]} 27... Rf2+ {[%clk
0:00:35.5]} 28. Ke1 {[%clk 0:00:03.7]} 28... Rxc2+ {[%clk 0:00:35.5]} 0-1

[Event "Late-Titled-Tuesday-Blitz-October-03-2023"]
[Site "Chess.com"]
[Date "2023.10.03"]
[Round "11"]
[White "scandalgod"]
[Black "GoldenShare"]
[Result "1-0"]
[WhiteElo "2500"]
[BlackElo "2563"]
[TimeControl "180+1"]
[EndTime "16:01:24 PDT"]
[Termination "scandalgod won by checkmate"]

1. d4 {[%clk 0:02:55.4]} 1... d5 {[%clk 0:02:37.6]} 2. c4 {[%clk 0:02:51.8]}
2... dxc4 {[%clk 0:02:38.5]} 3. e3 {[%clk 0:02:51.4]} 3... Nf6 {[%clk
0:02:38.9]} 4. Bxc4 {[%clk 0:02:50.6]} 4... e6 {[%clk 0:02:39.8]} 5. Nf3 {[%clk
0:02:50]} 5... a6 {[%clk 0:02:40.7]} 6. O-O {[%clk 0:02:48.2]} 6... b5 {[%clk
0:02:41.1]} 7. Bb3 {[%clk 0:02:43.2]} 7... Bb7 {[%clk 0:02:42]} 8. Qe2 {[%clk
0:02:42.2]} 8... c5 {[%clk 0:02:41.9]} 9. a4 {[%clk 0:02:40.6]} 9... b4 {[%clk
0:02:41.6]} 10. Rd1 {[%clk 0:02:34.4]} 10... Nbd7 {[%clk 0:02:41.2]} 11. Nbd2
{[%clk 0:02:19.9]} 11... Be7 {[%clk 0:02:41]} 12. Nc4 {[%clk 0:02:16.7]} 12...
O-O {[%clk 0:02:40.9]} 13. Nfe5 {[%clk 0:02:08]} 13... Bd5 {[%clk 0:02:33.7]}
14. e4 {[%clk 0:01:44.5]} 14... Bxc4 {[%clk 0:02:23.3]} 15. Bxc4 {[%clk
0:01:34.1]} 15... Nxe5 {[%clk 0:02:13.9]} 16. dxe5 {[%clk 0:01:33.3]} 16... Nd7
{[%clk 0:02:14.5]} 17. Bxa6 {[%clk 0:01:27.4]} 17... Qc7 {[%clk 0:02:08.3]} 18.
f4 {[%clk 0:01:26.5]} 18... Nb6 {[%clk 0:01:56.5]} 19. Bb5 {[%clk 0:01:23]}
19... c4 {[%clk 0:01:29.2]} 20. Be3 {[%clk 0:01:22.5]} 20... Bc5 {[%clk
0:01:27.7]} 21. Bxc5 {[%clk 0:01:16.3]} 21... Qxc5+ {[%clk 0:01:28.6]} 22. Qf2
{[%clk 0:01:16.9]} 22... Qc7 {[%clk 0:01:27.9]} 23. a5 {[%clk 0:01:13.2]} 23...
Nc8 {[%clk 0:01:20.7]} 24. a6 {[%clk 0:01:12.9]} 24... Nb6 {[%clk 0:01:16.3]}
25. Rd6 {[%clk 0:01:03.6]} 25... Rfb8 {[%clk 0:01:08.6]} 26. Rad1 {[%clk
0:01:02.5]} 26... h6 {[%clk 0:01:05.4]} 27. h3 {[%clk 0:00:45.5]} 27... Nc8
{[%clk 0:01:05.2]} 28. Rd8+ {[%clk 0:00:26.6]} 28... Kh7 {[%clk 0:01:05.5]} 29.
R1d7 {[%clk 0:00:23.6]} 29... Qa5 {[%clk 0:01:05.7]} 30. f5 {[%clk 0:00:19.6]}
30... Qxb5 {[%clk 0:00:53.3]} 31. fxe6 {[%clk 0:00:17.8]} 31... fxe6 {[%clk
0:00:44.9]} 32. Rh8+ {[%clk 0:00:15]} 32... Kg6 {[%clk 0:00:37.7]} 33. Qf7+
{[%clk 0:00:13.9]} 33... Kg5 {[%clk 0:00:35.1]} 34. Qxg7+ {[%clk 0:00:14.2]}
34... Kf4 {[%clk 0:00:36]} 35. Qg4+ {[%clk 0:00:13.2]} 35... Ke3 {[%clk
0:00:36.2]} 36. Qf3# {[%clk 0:00:13.5]} 1-0

[Event "Late-Titled-Tuesday-Blitz-October-03-2023"]
[Site "Chess.com"]
[Date "2023.10.03"]
[Round "11"]
[White "Mikhal867"]
[Black "IngOscarArdila"]
[Result "0-1"]
[WhiteElo "2451"]
[BlackElo "2354"]
[TimeControl "180+1"]
[EndTime "16:01:25 PDT"]
[Termination "IngOscarArdila won on time"]

1. d4 {[%clk 0:03:00.9]} 1... Nf6 {[%clk 0:02:59.9]} 2. c4 {[%clk 0:02:58]} 2...
e6 {[%clk 0:02:59.9]} 3. Nf3 {[%clk 0:02:57.1]} 3... Bb4+ {[%clk 0:02:59.8]} 4.
Bd2 {[%clk 0:02:56.4]} 4... Qe7 {[%clk 0:03:00.1]} 5. g3 {[%clk 0:02:56.3]} 5...
O-O {[%clk 0:02:59.1]} 6. Bg2 {[%clk 0:02:55.3]} 6... Bxd2+ {[%clk 0:02:56.2]}
7. Nbxd2 {[%clk 0:02:54.5]} 7... d6 {[%clk 0:02:56.9]} 8. O-O {[%clk 0:02:52.2]}
8... Nbd7 {[%clk 0:02:57.3]} 9. Rc1 {[%clk 0:02:40.9]} 9... e5 {[%clk
0:02:57.4]} 10. e3 {[%clk 0:02:38.2]} 10... Re8 {[%clk 0:02:57.3]} 11. Qc2
{[%clk 0:02:37.2]} 11... c6 {[%clk 0:02:53.1]} 12. Rfd1 {[%clk 0:02:25.2]} 12...
Nf8 {[%clk 0:02:43.7]} 13. c5 {[%clk 0:02:19.9]} 13... exd4 {[%clk 0:02:42.6]}
14. Nxd4 {[%clk 0:02:16.1]} 14... d5 {[%clk 0:02:39.3]} 15. b4 {[%clk
0:02:12.6]} 15... a6 {[%clk 0:02:36.5]} 16. a4 {[%clk 0:02:12.2]} 16... Ne6
{[%clk 0:02:35.4]} 17. Nf5 {[%clk 0:02:10.8]} 17... Qc7 {[%clk 0:02:32.2]} 18.
Nd6 {[%clk 0:02:09.9]} 18... Rd8 {[%clk 0:02:30.9]} 19. Nb3 {[%clk 0:01:57.2]}
19... Ne8 {[%clk 0:02:30.9]} 20. Nf5 {[%clk 0:01:54.2]} 20... Ng5 {[%clk
0:02:23.4]} 21. Qb2 {[%clk 0:01:47]} 21... Bxf5 {[%clk 0:02:20.7]} 22. Nd4
{[%clk 0:01:43.7]} 22... Bd7 {[%clk 0:02:17.2]} 23. h4 {[%clk 0:01:37.4]} 23...
Ne6 {[%clk 0:02:17.2]} 24. Nf5 {[%clk 0:01:36]} 24... Nf8 {[%clk 0:02:16.3]} 25.
Nd4 {[%clk 0:01:25.9]} 25... g6 {[%clk 0:02:10.4]} 26. h5 {[%clk 0:01:24.5]}
26... Ne6 {[%clk 0:02:10.3]} 27. Nf3 {[%clk 0:01:18.3]} 27... Bc8 {[%clk
0:01:48.1]} 28. h6 {[%clk 0:01:17.9]} 28... f6 {[%clk 0:01:47.3]} 29. g4 {[%clk
0:01:11]} 29... Qe7 {[%clk 0:01:46.2]} 30. Re1 {[%clk 0:00:50.7]} 30... Qf8
{[%clk 0:01:46.1]} 31. e4 {[%clk 0:00:43.3]} 31... Nf4 {[%clk 0:01:39.9]} 32.
exd5 {[%clk 0:00:38.8]} 32... Bxg4 {[%clk 0:01:28]} 33. dxc6 {[%clk 0:00:22.1]}
33... bxc6 {[%clk 0:01:25.2]} 34. Nd4 {[%clk 0:00:21.4]} 34... Qxh6 {[%clk
0:01:21.1]} 35. Bxc6 {[%clk 0:00:14.5]} 35... Qg5 {[%clk 0:01:05.9]} 36. f3
{[%clk 0:00:01]} 36... Bxf3+ {[%clk 0:00:57.5]} 37. Kf1 {[%clk 0:00:01.2]} 37...
Bxc6 {[%clk 0:00:47.1]} 38. Nxc6 {[%clk 0:00:01.1]} 38... Nd3 {[%clk 0:00:41.1]}
0-1

[Event "Late-Titled-Tuesday-Blitz-October-03-2023"]
[Site "Chess.com"]
[Date "2023.10.03"]
[Round "11"]
[White "MBA_CHESS_2021"]
[Black "rikchessmx"]
[Result "1-0"]
[WhiteElo "2264"]
[BlackElo "2341"]
[TimeControl "180+1"]
[EndTime "16:01:28 PDT"]
[Termination "MBA_CHESS_2021 won by checkmate"]

1. d4 {[%clk 0:03:00.9]} 1... Nf6 {[%clk 0:02:54]} 2. c4 {[%clk 0:03:00.5]} 2...
e6 {[%clk 0:02:52.8]} 3. Nf3 {[%clk 0:02:58.9]} 3... d5 {[%clk 0:02:50.2]} 4.
Nc3 {[%clk 0:02:56.9]} 4... c6 {[%clk 0:02:49.7]} 5. e3 {[%clk 0:02:51.9]} 5...
Nbd7 {[%clk 0:02:49.7]} 6. a3 {[%clk 0:02:38.2]} 6... Bd6 {[%clk 0:02:48.4]} 7.
c5 {[%clk 0:02:37.7]} 7... Bc7 {[%clk 0:02:47.5]} 8. b4 {[%clk 0:02:38]} 8...
Qe7 {[%clk 0:02:47.7]} 9. Bb2 {[%clk 0:02:38]} 9... e5 {[%clk 0:02:47.9]} 10.
Be2 {[%clk 0:02:37.5]} 10... e4 {[%clk 0:02:47.8]} 11. Nd2 {[%clk 0:02:36.7]}
11... O-O {[%clk 0:02:46.8]} 12. h3 {[%clk 0:02:35.9]} 12... Ne8 {[%clk
0:02:45.8]} 13. Qb3 {[%clk 0:02:30.8]} 13... Kh8 {[%clk 0:02:44.7]} 14. a4
{[%clk 0:02:23.4]} 14... f5 {[%clk 0:02:43.2]} 15. g3 {[%clk 0:02:23.4]} 15...
b6 {[%clk 0:02:39.9]} 16. b5 {[%clk 0:02:10.2]} 16... bxc5 {[%clk 0:02:37.3]}
17. bxc6 {[%clk 0:02:09.9]} 17... Ndf6 {[%clk 0:02:28.8]} 18. Ba3 {[%clk
0:02:01.8]} 18... Bd6 {[%clk 0:02:24.9]} 19. dxc5 {[%clk 0:00:51.2]} 19... Bxc5
{[%clk 0:02:24.5]} 20. O-O {[%clk 0:00:46.4]} 20... Be6 {[%clk 0:02:20.4]} 21.
Rfc1 {[%clk 0:00:39.9]} 21... Bxa3 {[%clk 0:02:14.2]} 22. Qxa3 {[%clk
0:00:38.8]} 22... Nd6 {[%clk 0:02:13.7]} 23. Nb5 {[%clk 0:00:37.8]} 23... Nfe8
{[%clk 0:02:10]} 24. Nb3 {[%clk 0:00:34.2]} 24... f4 {[%clk 0:02:08.7]} 25. exf4
{[%clk 0:00:33]} 25... Bxh3 {[%clk 0:02:08.2]} 26. N3d4 {[%clk 0:00:32.3]} 26...
e3 {[%clk 0:02:07.9]} 27. Qxe3 {[%clk 0:00:31.5]} 27... Ne4 {[%clk 0:02:07.5]}
28. c7 {[%clk 0:00:28.5]} 28... N8d6 {[%clk 0:02:02.1]} 29. Bf3 {[%clk
0:00:25.4]} 29... a6 {[%clk 0:01:58.1]} 30. Nxd6 {[%clk 0:00:24.1]} 30... Qxd6
{[%clk 0:01:58.1]} 31. Bxe4 {[%clk 0:00:23]} 31... dxe4 {[%clk 0:01:58.1]} 32.
Rc6 {[%clk 0:00:19.6]} 32... Qd5 {[%clk 0:01:55]} 33. Rac1 {[%clk 0:00:18.7]}
33... Rac8 {[%clk 0:01:53]} 34. Kh2 {[%clk 0:00:16]} 34... Bd7 {[%clk
0:01:51.3]} 35. R6c5 {[%clk 0:00:14.8]} 35... Qa2 {[%clk 0:01:48.3]} 36. a5
{[%clk 0:00:14]} 36... Bb5 {[%clk 0:01:44.5]} 37. R1c2 {[%clk 0:00:13.7]} 37...
Qxa5 {[%clk 0:01:43.9]} 38. Nxb5 {[%clk 0:00:13.6]} 38... axb5 {[%clk
0:01:44.1]} 39. Qxe4 {[%clk 0:00:13.7]} 39... h6 {[%clk 0:01:39.8]} 40. Qe7
{[%clk 0:00:13.3]} 40... Rfe8 {[%clk 0:01:35.8]} 41. Qxe8+ {[%clk 0:00:13]}
41... Rxe8 {[%clk 0:01:35.4]} 42. c8=Q {[%clk 0:00:12.9]} 42... Rxc8 {[%clk
0:01:35.6]} 43. Rxc8+ {[%clk 0:00:13.4]} 43... Kh7 {[%clk 0:01:36]} 44. f5
{[%clk 0:00:10.5]} 44... Qa6 {[%clk 0:01:31.6]} 45. R2c6 {[%clk 0:00:07.8]}
45... Qa7 {[%clk 0:01:31.5]} 46. Re6 {[%clk 0:00:05.9]} 46... Qxf2+ {[%clk
0:01:30.8]} 47. Kh1 {[%clk 0:00:06]} 47... Qxf5 {[%clk 0:01:31.2]} 48. Ree8
{[%clk 0:00:05.7]} 48... Qf3+ {[%clk 0:01:30.7]} 49. Kh2 {[%clk 0:00:05.7]}
49... b4 {[%clk 0:01:31]} 50. Rh8+ {[%clk 0:00:05]} 50... Kg6 {[%clk 0:01:30.8]}
51. Rb8 {[%clk 0:00:05.6]} 51... b3 {[%clk 0:01:30.3]} 52. Rb6+ {[%clk
0:00:05.4]} 52... Kh5 {[%clk 0:01:28.5]} 53. Rhb8 {[%clk 0:00:05.9]} 53... Qe2+
{[%clk 0:01:26.7]} 54. Kh3 {[%clk 0:00:05.8]} 54... Qf1+ {[%clk 0:01:26.4]} 55.
Kh2 {[%clk 0:00:06]} 55... Qf2+ {[%clk 0:01:26.6]} 56. Kh3 {[%clk 0:00:06.4]}
56... Qf5+ {[%clk 0:01:26]} 57. Kh2 {[%clk 0:00:06.2]} 57... Qc2+ {[%clk
0:01:25.3]} 58. Kh3 {[%clk 0:00:05.9]} 58... Qf5+ {[%clk 0:01:25.4]} 59. Kh2
{[%clk 0:00:06.1]} 59... Qf2+ {[%clk 0:01:25.1]} 60. Kh3 {[%clk 0:00:06.5]}
60... g5 {[%clk 0:01:23]} 61. g4# {[%clk 0:00:05]} 1-0